[Event "European Women-ch 2023"]
[Site "Petrovac"]
[Date "2023.03.20"]
[Round "3.10"]
[White "Khotenashvili, Bela"]
[Black "Hajiyeva, Laman"]
[Result "1-0"]
[ECO "A11"]
[WhiteElo "2491"]
[BlackElo "2118"]
[Annotator "TA"]
[PlyCount "145"]
[EventDate "2023.03.15"]
[EventType "swiss"]
[EventCountry "MNE"]
[SourceTitle "playchess.com"]
[Source "ChessBase"]
[SourceQuality "1"]
[TimeControl "40/5400+30:1800+30"]

{[%evp 16,145,15,27,32,33,37,38,38,31,31,31,40,25,56,55,67,20,23,35,30,29,27,26,28,22,46,-6,0,0,0,-26,-26,-51,-26,-32,-7,-29,-22,-26,-30,-49,-59,-47,-5,-5,-5,-5,-6,-6,-5,-61,-60,-111,-92,-251,-44,-37,0,-45,0,0,0,0,0,0,0,0,0,0,40,4,37,42,45,36,35,33,109,0,10,9,41,30,28,20,29,24,37,27,41,17,54,8,29,0,0,-23,35,0,0,0,118,135,131,124,120,113,113,0,112,106,172,164,142,145,307,281,353,348,343,311,337,315,447,433,12843,12843,29988,29989,29989,29989]} 1. c4 {[%emt 0:00:12]} c6 {[%emt 0:00:14]} 2. Nf3 {[%emt 0:00:11]} d5 {[%emt 0:00:33]} 3. e3 {[%emt 0:00:06]} Nf6 {[%emt 0:00:49]} 4. Nc3 {[%emt 0:00:08]} e6 {[%emt 0:00:37]} 5. b3 {[%emt 0:00:07]} Bd6 {[%emt 0:01:46]} 6. Bb2 {[%emt 0:00:21]} O-O {[%emt 0:01:22]} 7. Be2 {[%emt 0:00:15]} a6 {[%emt 0:05:23] 7...e5 is the modern continuation.} 8. d4 {[%emt 0:03:03]} Nbd7 {[%emt 0:04:49]} 9. O-O {[%emt 0:03:21]} b5 {[%emt 0:01:24] A11: English Opening: 1...c6.} 10. Qc2 {[%emt 0:01:44]} Bb7 {[%emt 0:05:31]} 11. c5 {[%emt 0:07:18]} Bc7 {[%emt 0:02:20] White is slightly better.} 12. b4 {[%emt 0:00:07]} a5 {[%emt 0:06:17]} 13. a3 {[%emt 0:01:43]} Qe7 {[%emt 0:03:13]} 14. Rfe1 {[%emt 0:10:54]} Rac8 {[%emt 0:08:39] [#]} 15. Bd3 $146 {[%emt 0:03:50]} ({Predecessor:} 15. Rad1 e5 16. Nxe5 Nxe5 17. dxe5 Bxe5 18. Bf3 Rcd8 19. Ne2 axb4 20. axb4 Ra8 21. Ra1 {1-0 Glicenstein,A (2185)-Flom,G (2172) FRA-ch U16 Hyeres 2002 (9.6)}) 15... h6 {[%emt 0:03:03]} 16. e4 {[%emt 0:21:35] White is more active.} (16. Ne2 $14) 16... dxe4 $11 {[%emt 0:03:17]} 17. Bxe4 {[%emt 0:00:14]} Nxe4 {[%emt 0:02:52]} 18. Nxe4 {[%emt 0:00:29]} a4 {[%emt 0:08:50]} 19. Ne5 {[%emt 0:11:03]} Rfe8 {[%emt 0:03:21]} 20. Rad1 {[%emt 0:20:00]} Nf8 {[%emt 0:01:40]} 21. Ng3 {[%emt 0:05:18]} (21. Rd3 $14) 21... Rcd8 {[%emt 0:03:34]} (21... f6 {feels hotter.} 22. Ng6 Nxg6 23. Qxg6 Qf7) 22. Rd3 {[%emt 0:03:43]} f6 {[%emt 0:07:13]} 23. Nf3 {[%emt 0:00:52]} (23. Nh5 $5) 23... Qf7 {[%emt 0:06:31]} 24. Rde3 {[%emt 0:01:06]} Rd5 {[%emt 0:08:58]} 25. Ne2 {[%emt 0:00:28]} Qh5 {[%emt 0:05:09]} 26. Nc3 {[%emt 0:00:19]} Rdd8 {[%emt 0:00:36]} 27. h3 {[%emt 0:01:31]} Qf7 {[%emt 0:01:05]} 28. Bc1 {[%emt 0:01:11]} Ng6 {[%emt 0:01:19]} 29. Re4 {[%emt 0:03:10]} e5 {[%emt 0:01:32]} 30. dxe5 {[%emt 0:00:36]} Nxe5 {[%emt 0:00:08]} 31. Nxe5 {[%emt 0:00:29]} Bxe5 {[%emt 0:00:56]} 32. Qe2 {[%emt 0:00:24]} Kf8 {[%emt 0:00:52]} 33. Nd1 {[%emt 0:00:40]} (33. Qf3 $11) 33... Bc8 $15 {[%emt 0:00:51]} 34. Re3 {[%emt 0:00:29]} (34. f4 $15 Bc7 35. Rxe8+ Rxe8 36. Qxe8+ Qxe8 37. Rxe8+ Kxe8 38. Kf2) 34... Be6 $17 {[%emt 0:00:48] ...Bf4 is the strong threat.} (34... Qg6 {looks sharper.} 35. Nb2 Bxh3 36. Qf3 Bxb2 37. Rxe8+ Rxe8 38. Rxe8+ Kxe8 39. Bxb2 Qb1+) 35. Bb2 $2 {[%emt 0:00:05]} (35. Qf3 $17) 35... Bc4 $2 {[%emt 0:01:10]} ({Better is} 35... Bf4 $1 $19 36. Qf3 Bxe3 37. Nxe3 Bd5) 36. Qg4 $15 {[%emt 0:00:49][%cal Rb2e5]} Be6 {[%emt 0:00:57] A strong pair of Bishops.} (36... Bb8 {seems wilder.} 37. Bc3 Bd5 38. Qf5 Kg8) 37. Qe4 {[%emt 0:00:34]} Bxb2 {[%emt 0:00:38]} (37... Bd5 {is interesting.} 38. Qh7 Bf4 39. Qh8+ Qg8) 38. Nxb2 {[%emt 0:00:06]} Bd5 {[%emt 0:00:19]} 39. Qf5 {[%emt 0:00:37]} Rxe3 {[%emt 0:00:16]} 40. Rxe3 {[%emt 0:00:00]} Re8 {[%emt 0:00:00]} 41. Nd1 {[%emt 0:04:01]} Rd8 {[%emt 0:10:31]} 42. Nc3 {[%emt 0:01:52]} Qd7 {[%emt 0:03:54]} 43. Qf4 {[%emt 0:08:44]} (43. Qxd7 {simplifies} Rxd7 44. Rd3 Be6 45. Rxd7 Bxd7 46. Ne2) 43... Qf7 {[%emt 0:05:23] Black is weak on the dark squares} 44. Rd3 {[%emt 0:01:33]} Qg6 {[%emt 0:01:30][%csl Gd5,LRd3,LRg2][%cal Rg6g2]} 45. Rg3 {[%emt 0:02:40]} (45. Qg3 $5 Qf5 46. Kh2 $11 (46. Nxd5 Rxd5 47. Re3 Kf7 $11)) 45... Qe8 {[%emt 0:02:47]} 46. Qg4 {[%emt 0:07:40][%csl Gg3][%cal Rg4g7]} Qd7 {[%emt 0:01:38]} (46... Qe7 $14) 47. Qf4 {[%emt 0:02:01]} (47. Rd3 $1 $16) 47... Qe8 $11 {[%emt 0:02:15]} 48. Kh2 {[%emt 0:00:08]} Qf7 {[%emt 0:01:23]} 49. Rd3 {[%emt 0:01:00]} Qg6 $1 {[%emt 0:02:10][%csl Gd5][%cal Rg6g2]} 50. Qg3 {[%emt 0:01:36]} Qf5 {[%emt 0:00:49]} 51. Re3 {[%emt 0:00:22]} (51. Rd1 {with more complications.} Kf7 52. Re1 Qc8 53. Qe3) 51... Qd7 {[%emt 0:01:02] Dodges Qc7} 52. Qf4 {[%emt 0:05:13]} Qf7 {[%emt 0:00:59]} 53. h4 {[%emt 0:00:04][%cal Bh3h4,Bh4h5,Bh5g6][%mdl 32]} Kg8 {[%emt 0:01:55]} 54. Qf5 {[%emt 0:00:55]} (54. Rg3 $14 {is more appropriate.}) 54... Kf8 {[%emt 0:01:02]} 55. h5 {[%emt 0:00:20]} Qc7+ {[%emt 0:00:32]} 56. Rg3 {[%emt 0:00:39]} Qd7 {[%emt 0:00:28]} ({Black should try} 56... Bc4 $11) 57. Qg6 {[%emt 0:00:14]} (57. Qxd7 {simplifies} Rxd7 58. Rd3 Be6 59. Rxd7 Bxd7 60. Ne2) 57... Qf7 {[%emt 0:00:16]} 58. Rd3 {[%emt 0:00:24]} Qxg6 {[%emt 0:00:34]} (58... Qc7+ $11 59. Qg3 Qf7) 59. hxg6 $16 {[%emt 0:00:02] Hoping for Nxd5.} Ke7 {[%emt 0:00:09]} 60. Nxd5+ {[%emt 0:00:14]} cxd5 {[%emt 0:00:16][%mdl 4096] Endgame KR-KR} (60... Rxd5 61. Rxd5 cxd5 62. g4 $18) 61. Re3+ $1 {[%emt 0:00:52][%cal Bd3e3,Be3e5,Be5d5,Bd5d8,Bd8b8,Bb8b6,Bb6b5,Bb5a5][%mdl 32]} Kd7 {[%emt 0:01:00]} 62. Kg1 {[%emt 0:00:36]} (62. Re1 $16) 62... Rf8 {[%emt 0:01:13]} (62... d4 $1 $11 {remains equal.} 63. Re4 Kc6) 63. Kf1 {[%emt 0:00:17]} f5 {[%emt 0:00:38]} (63... h5 $16) 64. Re5 $1 $18 {[%emt 0:00:02]} Rf6 {[%emt 0:00:09]} (64... Kc6 $2 65. Re6+ Kd7 66. Rb6) 65. Rxd5+ {[%emt 0:00:04]} Kc6 $2 {[%emt 0:00:04] [#]} (65... Kc7 $16 66. g3 Kc6) 66. Rd8 $1 {[%emt 0:00:55]} ({Less strong is} 66. Re5 Kd7 $16) 66... Rxg6 {[%emt 0:00:23]} 67. Rb8 {[%emt 0:00:09] Black must now prevent Rb6+.} Rg4 {[%emt 0:00:14] [#]} 68. Rb6+ $1 {[%emt 0:00:09]} Kd5 {[%emt 0:00:17]} 69. Rxb5 {[%emt 0:00:34]} Kc4 {[%emt 0:00:03]} (69... g5 $142 70. Ra5 h5 71. Rxa4 Rc4) 70. Ra5 {[%emt 0:00:24] White threatens c6 and mate.} Kb3 {[%emt 0:00:15]} (70... Rg6 $142 71. Rxa4 Rc6) 71. c6 {[%emt 0:00:33][%cal Bc5c6,Bc6c7][%mdl 32] Intending c7 and mate.} Re4 {[%emt 0:02:06]} 72. c7 {[%emt 0:00:18]} Re8 {[%emt 0:00:06]} 73. b5 {[%emt 0:00:12] White used his chance.   Weighted Error Value: White=0.19 (very precise) /Black=0.20 (precise)} 1-0

[Event "European Women-ch 2023"]
[Site "Petrovac"]
[Date "2023.03.20"]
[Round "3.10"]
[White "Ibrahimova, Sabina"]
[Black "Efroimski, Marsel"]
[Result "0-1"]
[ECO "B88"]
[WhiteElo "2207"]
[BlackElo "2451"]
[Annotator "TA"]
[PlyCount "112"]
[EventDate "2023.03.15"]
[EventType "swiss"]
[EventCountry "MNE"]
[SourceTitle "playchess.com"]
[Source "ChessBase"]
[SourceQuality "1"]
[TimeControl "40/5400+30:1800+30"]

{[%evp 13,111,18,15,0,-4,-13,-12,-10,-6,-17,-2,-21,0,-21,-12,-6,-7,-4,0,-20,0,-18,-16,-38,-28,-25,-20,-26,-29,-90,-81,-95,-81,-189,-189,-191,-75,-173,-153,-168,-128,-191,-177,-164,-164,-177,-171,-171,-151,-168,-165,-181,-144,-184,-148,-171,-155,-181,-79,-222,0,0,0,0,0,-6,-8,-176,-176,-183,-187,-177,-203,-200,0,0,0,0,0,0,0,0,0,-129,-124,-141,-22,-26,-27,-42,-49,-89,-89,-110,-109,-12839,-12840,-12842,-12843,-29999]} 1. e4 {[%emt 0:00:24]} c5 {[%emt 0:00:02]} 2. Nf3 {[%emt 0:00:10]} d6 {[%emt 0:00:04]} 3. d4 {[%emt 0:00:16]} cxd4 {[%emt 0:00:04]} 4. Nxd4 {[%emt 0:00:06]} Nf6 {[%emt 0:00:04]} 5. Nc3 {[%emt 0:00:10]} Nc6 {[%emt 0:00:03]} 6. Bc4 {[%emt 0:00:32]} e6 {[%emt 0:00:07]} 7. O-O {[%emt 0:00:32]} Be7 {[%emt 0:01:41]} 8. Nb3 {[%emt 0:00:48] B88: Sicilian: Sozin Attack.} O-O {[%emt 0:15:04]} 9. Bd3 {[%emt 0:02:50]} a6 {[%emt 0:08:15]} 10. f4 {[%emt 0:00:52] The position is equal.} b5 {[%emt 0:00:39]} 11. a3 {[%emt 0:01:05]} Qc7 {[%emt 0:29:10]} 12. Kh1 {[%emt 0:03:40]} Bb7 {[%emt 0:01:07] [#]} 13. Qe2 $146 {[%emt 0:03:40]} ({Predecessor:} 13. Qf3 Rac8 14. Be3 b4 15. axb4 Nxb4 16. Nd4 Nd7 17. Qg3 Bf6 18. Rae1 Nxd3 19. cxd3 {1-0 Zozulia,A (2371)-Stegariu,V (2220) Eforie Nord op 3rd 2011 (9)}) 13... Rfe8 {[%emt 0:01:43]} 14. Bd2 {[%emt 0:03:44]} Bf8 {[%emt 0:05:39]} 15. Rae1 {[%emt 0:03:52]} Nd7 {[%emt 0:08:41][%cal Bf6d7,Bd7c5,Bc5d3][%mdl 32]} 16. Rf3 {[%emt 0:07:31]} Nc5 {[%emt 0:00:59]} 17. Qf2 {[%emt 0:01:00]} (17. Rh3 $5) 17... Nxd3 {[%emt 0:05:25]} 18. cxd3 {[%emt 0:02:13]} f5 {[%emt 0:01:14]} 19. Rh3 {[%emt 0:06:26]} Qf7 {[%emt 0:01:26]} 20. Qh4 {[%emt 0:04:34][%csl Gh3][%cal Rh4h7]} h6 {[%emt 0:00:06]} 21. Qf2 {[%emt 0:01:02]} (21. Rf1 $11 {remains equal.}) 21... e5 $17 {[%emt 0:02:15]} 22. Nd5 {[%emt 0:11:55]} exf4 {[%emt 0:02:55]} (22... Ne7 $6 23. Nxe7+ Bxe7 24. Na5 $11) 23. Bxf4 {[%emt 0:10:13]} (23. Qxf4 $17 Ne5 24. Rg3) 23... Ne5 $19 {[%emt 0:03:05]} 24. Bxe5 {[%emt 0:08:00]} Bxd5 {[%emt 0:05:27]} ({Weaker is} 24... Rxe5 25. Rf1 $17) (24... dxe5 $19 25. Nd2 Rac8) 25. exd5 {[%emt 0:03:14]} (25. Bxg7 $17 {was worth a try.} Qxg7 26. Nd4 (26. exd5 Qxb2 27. Rg3+ Bg7 $17)) 25... dxe5 {[%emt 0:00:15]} 26. Nd2 {[%emt 0:03:40]} Rad8 {[%emt 0:00:30]} (26... Qxd5 27. Qxf5 Rac8 28. Ne4 $11) 27. Rf1 {[%emt 0:01:27]} (27. Rf3 $17) 27... f4 {[%emt 0:00:23]} 28. Ne4 {[%emt 0:01:15]} Rxd5 {[%emt 0:00:17]} 29. Rf3 {[%emt 0:05:46]} Red8 {[%emt 0:00:36]} 30. Qe2 {[%emt 0:00:25]} Qd7 {[%emt 0:00:34][%cal Rd5d3]} 31. Rd1 {[%emt 0:00:21]} Rd4 {[%emt 0:02:45]} 32. h3 {[%emt 0:04:28]} Qc7 {[%emt 0:01:58]} 33. g3 {[%emt 0:02:26]} Rc8 {[%emt 0:02:34]} 34. gxf4 {[%emt 0:01:39]} exf4 {[%emt 0:00:06]} 35. Rg1 {[%emt 0:03:09]} Qe5 {[%emt 0:00:34] Prevents Nf6+.} (35... Kh8 $19 {is more deadly.} 36. Qf1 Bd6) 36. Qf2 {[%emt 0:02:09]} (36. Rg4 $17) 36... Rxe4 $2 {[%emt 0:02:01]} ({Black should play} 36... Bc5 $19 {Threatens to win with ...Rxe4.} 37. Qc2 Rdd8 38. Nxc5 Rxc5) 37. dxe4 $11 {[%emt 0:00:31]} Qxe4 {[%emt 0:00:02]} 38. Re1 {[%emt 0:00:50]} Qd5 {[%emt 0:00:35]} 39. Qe2 {[%emt 0:01:32] White is weak on the dark squares} Re8 {[%emt 0:00:59][%mdl 64] Against Qe6+. Deflection} 40. Qxe8 {[%emt 0:00:00]} (40. Rd1 $1 $11) 40... Qxf3+ {[%emt 0:00:00][%mdl 4096] Endgame KQR-KQB} 41. Kg1 {[%emt 0:03:15]} Qg3+ {[%emt 0:00:41]} ({Stronger than} 41... Qxh3 42. Qe6+ Qxe6 43. Rxe6 $14) 42. Kf1 {[%emt 0:03:10]} Qxh3+ {[%emt 0:01:09]} 43. Ke2 {[%emt 0:00:10]} Qf5 {[%emt 0:10:58] Inhibits Qe5.} (43... Qh2+ $19 44. Kd1 Qxb2 45. Qe6+ Kh8) 44. Kf3 {[%emt 0:01:29]} Qh3+ {[%emt 0:07:54]} 45. Kxf4 {[%emt 0:03:05] Qe6+ would be deadly.} Qh2+ {[%emt 0:01:29]} 46. Ke3 {[%emt 0:04:12]} Qxb2 {[%emt 0:00:41]} 47. Rf1 {[%emt 0:00:17]} Qxa3+ {[%emt 0:00:06]} 48. Kd2 {[%emt 0:00:33] [#]} (48. Ke2 $11 {keeps the balance.}) 48... Qe7 $1 $17 {[%emt 0:00:46]} 49. Qa8 {[%emt 0:02:13]} Qb4+ {[%emt 0:00:57]} (49... g6 $17 {And now ...h5 would win.} 50. Qd5+ Kg7) 50. Ke2 $11 {[%emt 0:00:38]} Qc4+ {[%emt 0:00:26]} 51. Ke1 {[%emt 0:00:13]} Qe6+ {[%emt 0:00:15]} 52. Kd2 {[%emt 0:00:24]} Qd6+ {[%emt 0:00:08]} 53. Kc2 {[%emt 0:01:02]} b4 {[%emt 0:03:09][%cal Ob4b3] Hoping for ...b3+!} 54. Rf5 $2 {[%emt 0:03:41][%mdl 8192] [#]} (54. Qf3 $17) 54... b3+ $1 $19 {[%emt 0:01:16][%mdl 64] Decoy} 55. Kxb3 {[%emt 0:00:50]} (55. Kc3 Qb4+) 55... Qd3+ {[%emt 0:00:07]} 56. Ka4 {[%emt 0:00:05]} Qa3# {[%emt 0:00:13] Excellently played by Efroimski!   Weighted Error Value: White=0.44/Black=0.24 (precise)} 0-1

[Event "European Women-ch 2023"]
[Site "Petrovac"]
[Date "2023.03.20"]
[Round "3.10"]
[White "Petrovska, Katerina"]
[Black "Gaboyan, Susanna"]
[Result "0-1"]
[ECO "B30"]
[WhiteElo "1907"]
[BlackElo "2160"]
[Annotator "TA"]
[PlyCount "108"]
[EventDate "2023.03.15"]
[EventType "swiss"]
[EventCountry "MNE"]
[SourceTitle "playchess.com"]
[Source "ChessBase"]
[SourceQuality "1"]
[TimeControl "40/5400+30:1800+30"]

{[%evp 9,108,25,34,41,82,41,41,-1,-2,-10,56,63,62,59,53,57,70,25,22,0,0,-8,0,-35,-21,-17,-12,-14,-21,-25,10,-29,-37,-43,-32,-43,0,-218,-222,-220,-214,-218,-204,-216,-214,-218,-202,-230,-190,-268,-229,-223,-224,-232,-232,-232,-232,-232,-232,-259,-255,-231,-147,-147,-147,-155,-96,-105,-101,-90,-91,-93,-91,-97,-110,-100,-58,-62,-65,-143,-88,-12837,-12838,-12838,-12839,-12839,-12839,-12840,-12840,-12842,-12840,-12844,-12844,-12845,-12846,-12846,-12845,-12845,-12846,-12846,-12847]} 1. e4 {[%emt 0:00:08]} c5 {[%emt 0:00:09]} 2. Nf3 {[%emt 0:01:03]} Nc6 {[%emt 0:00:08]} 3. Nc3 {[%emt 0:00:39]} Nf6 {[%emt 0:01:32]} 4. Bb5 {[%emt 0:00:38]} Qc7 {[%emt 0:01:21]} 5. O-O {[%emt 0:04:00]} a6 {[%emt 0:00:24]} 6. Bxc6 {[%emt 0:02:23] B30: Sicilian: 2...Nc6 3 Bb5, lines without ...g6.} Qxc6 {[%emt 0:00:09]} 7. e5 {[%emt 0:09:15]} Nd5 {[%emt 0:00:46] [#]} 8. Nxd5 $146 {[%emt 0:17:52] White is slightly better.} (8. Ne4 $5 {[%cal Rf1e1]}) ({Predecessor:} 8. Ne4 Nc7 9. Re1 Ne6 10. d4 cxd4 11. Nxd4 Nxd4 12. Qxd4 e6 13. Bg5 b6 14. f3 {½-½ Simacek,P (2480)-Stehno,P (2310) Marianske Lazne GM 2006 (10)}) 8... Qxd5 {[%emt 0:00:17]} 9. d4 {[%emt 0:01:09]} c4 {[%emt 0:06:18]} (9... cxd4 $11 10. Bf4 (10. Qxd4 Qxd4 11. Nxd4 e6 $11) (10. Nxd4 Qxe5 11. c4 e6 $11) 10... e6) 10. Re1 $14 {[%emt 0:05:00]} b5 {[%emt 0:01:30] Black is weak on the dark squares} 11. Ng5 {[%emt 0:01:44][%cal Bf3g5,Bg5e4,Be4c3,Bc3e2,Be2f4,Bf4h5][%mdl 32]} Bb7 {[%emt 0:01:00][%csl Gb7][%cal Rd5g2]} 12. Ne4 {[%emt 0:01:00]} e6 {[%emt 0:07:21]} 13. f3 {[%emt 0:02:49]} Be7 {[%emt 0:06:16]} 14. Be3 {[%emt 0:09:54]} f5 {[%emt 0:02:35]} 15. Nc3 {[%emt 0:11:16]} Qc6 {[%emt 0:00:14]} 16. d5 {[%emt 0:03:57]} exd5 {[%emt 0:00:41]} 17. Qd4 {[%emt 0:00:21]} b4 {[%emt 0:01:25]} 18. Ne2 {[%emt 0:01:23]} O-O $36 {[%emt 0:06:49][%mdl 2048] Black has good play.} 19. Rad1 {[%emt 0:01:06]} (19. Nf4 {simplifies} d6 20. Rad1 dxe5 21. Qxe5 Rae8 22. Qxd5+ Qxd5 23. Nxd5 Bh4 24. g3) 19... d6 {[%emt 0:00:41]} 20. exd6 {[%emt 0:06:21]} Qxd6 {[%emt 0:02:44]} 21. Nf4 {[%emt 0:00:32][%cal Rf4d5]} Rfd8 {[%emt 0:10:29]} (21... Rad8 {simplifies} 22. Qb6 Rd7 23. g3 Qxb6 24. Bxb6 a5) 22. Nh5 {[%emt 0:08:47][%csl Gh5][%cal Rd4g7]} Qg6 {[%emt 0:05:22]} (22... Bf8 {simplifies} 23. b3 c3 24. Nf4 a5) 23. Bh6 $2 {[%emt 0:03:03]} Bf8 $19 {[%emt 0:03:59]} (23... gxh6 $2 24. Rxe7 Rd6 25. Rxb7 $18) 24. Bxg7 {[%emt 0:01:36]} Qxh5 {[%emt 0:00:31]} ({Don't do} 24... Bxg7 25. Qxg7+ Qxg7 26. Nxg7 $16) 25. Bxf8 {[%emt 0:06:00]} Rxf8 {[%emt 0:00:09]} 26. Re7 {[%emt 0:00:25][%csl Ge7][%cal Rd4g7]} Rf7 {[%emt 0:00:09] Against Qg7+} 27. Rde1 {[%emt 0:00:06]} Raf8 {[%emt 0:02:01]} 28. Qb6 {[%emt 0:01:17]} Bc8 {[%emt 0:02:12]} 29. Qc7 {[%emt 0:00:38]} (29. Qd4 {was called for.}) 29... f4 {[%emt 0:05:38]} 30. Qc5 {[%emt 0:00:17]} Rxe7 {[%emt 0:03:59]} 31. Rxe7 {[%emt 0:00:07]} Re8 {[%emt 0:00:19]} 32. Rxe8+ {[%emt 0:00:44]} Qxe8 {[%emt 0:00:15][%cal Re8e1]} 33. Qxd5+ {[%emt 0:00:07]} Be6 {[%emt 0:04:46]} 34. Qg5+ {[%emt 0:00:10]} Qg6 {[%emt 0:00:04]} 35. Qxf4 {[%emt 0:00:49]} Kg7 {[%emt 0:02:01]} 36. Qc7+ {[%emt 0:01:05]} Bf7 {[%emt 0:00:08]} 37. Qc5 {[%emt 0:00:43] Repels Qg5} b3 {[%emt 0:14:22]} (37... Qxc2 38. Qd4+ Kh6 39. Qf4+ Kg7 40. Qd4+ Kg6 41. Qd6+ Kf5 42. g4+ Kg5 43. Qe7+ Kg6 44. Qd6+ Kg5 45. Qe5+ Kg6 46. Qd6+ Kg5 $15) (37... h5 $142 38. Qxb4 Qxc2 39. Qc3+ Qxc3 40. bxc3 Kf6) 38. axb3 $17 {[%emt 0:00:30]} cxb3 {[%emt 0:00:07]} ({Don't play} 38... Qxc2 $6 39. Qd4+ Kf8 40. Qd8+ Be8 41. Qd6+ Kg8 42. Qd5+ Bf7 43. Qd8+ Kg7 44. Qd4+ Kh6 45. Qf4+ Kg7 46. Qd4+ $11) 39. Qd4+ {[%emt 0:00:32]} Qf6 {[%emt 0:00:43]} 40. Qg4+ {[%emt 0:00:00]} Kh8 {[%emt 0:00:00] Threatens to win with ...Qe5.} 41. Qc8+ {[%emt 0:00:14] [#]} Bg8 $1 {[%emt 0:01:52] ...Qd4+ would be deadly.} 42. cxb3 {[%emt 0:01:50]} Qd4+ {[%emt 0:03:18]} 43. Kf1 {[%emt 0:00:33]} a5 {[%emt 0:00:10]} 44. Qc2 {[%emt 0:05:26] Repels Qd3+} (44. Qf8 $15) 44... Be6 {[%emt 0:01:12] Black is more active.} (44... a4 $142 45. Qf2 Qxf2+ 46. Kxf2 Bxb3) 45. Qe4 $2 {[%emt 0:06:14][%mdl 8192] [#] This costs White the game.} (45. g4 $17) 45... Qxe4 $1 $19 {[%emt 0:01:59] Black is clearly winning.} (45... Qxb2 $2 46. Qxe6 Qc3 47. Qf7 $18) 46. fxe4 {[%emt 0:00:04][%mdl 4096] Endgame KB-KP} Kg7 {[%emt 0:00:36]} 47. Kf2 {[%emt 0:05:01]} Kf6 {[%emt 0:00:24]} 48. Ke3 {[%emt 0:07:22]} Ke5 {[%emt 0:00:12]} 49. h3 {[%emt 0:00:33]} Bxb3 {[%emt 0:01:02]} 50. g4 {[%emt 0:00:54]} Bc2 {[%emt 0:02:37]} 51. h4 {[%emt 0:01:14]} Bxe4 {[%emt 0:00:09]} 52. g5 {[%emt 0:00:52]} Bg6 {[%emt 0:00:26]} 53. Kf3 {[%emt 0:00:26]} Kf5 {[%emt 0:00:08]} 54. Kg3 {[%emt 0:00:12]} Bh5 {[%emt 0:00:06] Weighted Error Value: White=0.28 (precise) /Black=0.14 (very precise)} 0-1

[Event "European Women-ch 2023"]
[Site "Petrovac"]
[Date "2023.03.20"]
[Round "3.11"]
[White "Arabidze, Meri"]
[Black "Richterova, Natasa"]
[Result "1-0"]
[ECO "E01"]
[WhiteElo "2433"]
[BlackElo "2190"]
[Annotator "TA"]
[PlyCount "65"]
[EventDate "2023.03.15"]
[EventType "swiss"]
[EventCountry "MNE"]
[SourceTitle "playchess.com"]
[Source "ChessBase"]
[SourceQuality "1"]
[TimeControl "40/5400+30:1800+30"]

{[%evp 12,65,37,44,48,40,36,18,71,67,64,66,138,135,123,123,135,121,138,127,137,113,144,141,176,163,197,199,221,210,214,212,286,296,321,287,506,455,470,462,449,476,455,454,672,659,671,670,624,610,693,675,648,622,607,556]} 1. d4 {[%emt 0:00:04]} d5 {[%emt 0:00:05]} 2. c4 {[%emt 0:00:07]} c6 {[%emt 0:00:30]} 3. Nf3 {[%emt 0:00:05]} Nf6 {[%emt 0:00:06]} 4. g3 {[%emt 0:00:04]} e6 {[%emt 0:03:53]} 5. Bg2 {[%emt 0:00:46]} Nbd7 {[%emt 0:06:49]} 6. Qc2 {[%emt 0:02:14]} Bb4+ {[%emt 0:03:49]} 7. Nbd2 {[%emt 0:01:42]} O-O {[%emt 0:04:18] E01: Catalan: Early deviations.} 8. O-O {[%emt 0:00:14]} Re8 {[%emt 0:01:40] 8...b6 deserves study.} 9. e4 {[%emt 0:02:52]} dxe4 {[%emt 0:12:11]} (9... Bxd2 $1 $11 10. Nxd2 Nxe4) 10. Nxe4 $16 {[%emt 0:00:11]} Nxe4 {[%emt 0:04:17]} 11. Qxe4 {[%emt 0:00:02]} c5 {[%emt 0:00:23]} (11... Ba5 $14) 12. a3 {[%emt 0:04:00]} Ba5 {[%emt 0:02:35]} 13. Rd1 {[%emt 0:00:11] Threatens to win with dxc5.} cxd4 {[%emt 0:02:08]} 14. Nxd4 {[%emt 0:09:31]} a6 {[%emt 0:08:03] Wards off Nb5} 15. b4 {[%emt 0:02:50] White is much more active. The black rooks are badly placed.} Bc7 {[%emt 0:02:03]} 16. Bb2 {[%emt 0:01:45]} Qe7 {[%emt 0:03:17]} 17. Qc2 $36 {[%emt 0:01:59][%mdl 2048] [#] Keeping Black busy.} Be5 $146 {[%emt 0:02:08]} ({Predecessor:} 17... Rb8 18. Re1 Qf8 19. Rad1 Nf6 20. Nf3 Rd8 21. Ng5 Rxd1 22. Rxd1 e5 23. f4 Bg4 {1-0 Clavijo,J-Gonzalez Manchon,J COL-ch Columbia 1990}) 18. Re1 {[%emt 0:05:08]} Bf6 {[%emt 0:06:41]} 19. Rad1 {[%emt 0:01:57]} Qf8 {[%emt 0:00:23]} 20. c5 {[%emt 0:01:47]} Rb8 {[%emt 0:05:17]} 21. Bc1 {[%emt 0:06:07]} g6 {[%emt 0:01:49]} 22. Nb3 {[%emt 0:00:57]} Bg7 {[%emt 0:03:38]} 23. Na5 {[%emt 0:03:39]} Bh6 $2 {[%emt 0:03:17] [#]} (23... Ne5 {was necessary.} 24. Bf4 f6) 24. Bb2 {[%emt 0:10:19] White is clearly winning.} Bg7 {[%emt 0:01:42]} 25. Bxg7 {[%emt 0:01:50]} Qxg7 {[%emt 0:02:48]} 26. c6 {[%emt 0:04:16]} bxc6 {[%emt 0:00:02]} 27. Nxc6 {[%emt 0:00:16]} ({But not} 27. Bxc6 f5 28. Qd2 e5 29. Bxd7 Bxd7 30. Qxd7 Qxd7 31. Rxd7 Rbc8) ({Less strong is} 27. Qxc6 Nf6 28. h3 Rf8 $18) 27... Qf8 {[%emt 0:07:22]} (27... Ra8 $142 28. Ne7+ {[%mdl 64] Discovered Attack} Rxe7 29. Bxa8 Qf8) 28. Nxb8 $18 {[%emt 0:00:19]} Nxb8 {[%emt 0:00:02]} 29. Qc7 {[%emt 0:00:29] Prevents Bd7} Bd7 {[%emt 0:07:11]} 30. Rxd7 {[%emt 0:01:00]} Nxd7 {[%emt 0:00:13]} 31. Qxd7 {[%emt 0:00:05]} Rd8 {[%emt 0:00:20]} 32. Qc6 {[%emt 0:00:44]} Rd6 {[%emt 0:00:37]} 33. Qa8 {[%emt 0:00:22] Black did not feel at home in the position after the opening.   Weighted Error Value: White=0.07 (flawless) /Black=0.39} 1-0